bitfinex-derivatives/quotes_SOLF0:USTF0_20241203
["timestamp","ask_amount","ask_price","bid_price","bid_amount"]
[1733248480267,4.7315,223.98,223.94,2.2318]
[1733248480662,2.2316,223.97,223.94,2.2318]
[1733248480859,2.2316,223.97,223.92,10.53142252]
[1733248481169,2.2316,223.97,223.95,2.2318]
[1733248481667,2.5,223.98,223.93,6.74148855]
[1733248482167,2.2317,223.97,223.93,6.74148855]
[1733248482370,2.5,223.98,223.93,6.74148855]
[1733248482565,2.5,223.98,223.84,31.92566611]
[1733248483068,6.74148855,223.96,223.82,1.3218]
[1733248483367,6.74148855,223.94,223.85,8.97428855]
[1733248483672,1.4039,223.93,223.87,6.74148855]
[1733248483860,2.5,223.92,223.87,6.74148855]
[1733248484672,1.4039,223.93,223.91,6.74148855]
[1733248484964,2.5,223.92,223.91,6.74148855]
[1733248485563,2.7791,223.99,223.91,6.74148855]
[1733248485775,2.5,223.98,223.94,6.74148855]
[1733248486268,2.2316,223.97,223.94,6.74148855]
[1733248486772,2.5,223.98,223.9,2.2322]
[1733248486969,2.5,223.98,223.91,6.74148855]
[1733248488176,6.74148855,223.97,223.89,6.74148855]
[1733248488467,2.2321,223.93,223.89,6.74148855]
[1733248488667,2.5,223.92,223.82,1.39]
[1733248488968,2.2323,223.9,223.88,6.74148855]
[1733248489272,2.5,223.89,223.84,2.2329]
[1733248489472,2.5,223.88,223.86,6.74148855]
[1733248489667,2.5,223.87,223.86,6.74148855]
[1733248490975,2.2321,223.92,223.86,6.74148855]
[1733248491173,2.5,223.91,223.88,6.74148855]
[1733248491570,2.232,223.94,223.9,6.74148855]
[1733248491770,2.5,223.93,223.92,6.74148855]
[1733248492066,2.5,223.93,223.9,6.74148855]
[1733248492274,4.732,223.93,223.9,6.74148855]
[1733248493174,2.5,223.93,223.9,6.74148855]
[1733248493579,2.5,223.93,223.77,1.23744887]
[1733248493580,2.7791,223.99,223.92,6.74148855]
[1733248493769,2.2319,223.96,223.92,6.74148855]
[1733248494370,2.2319,223.96,223.92,8.97368855]
[1733248494776,2.2319,223.95,223.92,8.97368855]
[1733248494975,2.2319,223.95,223.92,6.74148855]
[1733248495975,2.2318,223.96,223.92,8.97368855]
[1733248496176,2.5,223.96,223.94,6.74148855]
[1733248496376,1.3574,224.0,223.94,6.74148855]
[1733248496680,1.3574,224.0,223.97,6.74148855]
[1733248496681,2.5,223.99,223.97,6.74148855]
[1733248499978,3.5889,224.0,223.97,6.74148855]
[1733248500176,2.5,223.99,223.97,6.74148855]
[1733248500369,2.5,223.99,223.96,2.2318]
[1733248500770,2.5,223.99,223.95,8.97338855]
[1733248500771,4.7315,223.99,223.95,8.97338855]
[1733248503273,2.5,223.99,223.91,2.2323]
[1733248503476,2.5,223.99,223.91,6.74148855]
[1733248503982,2.5,223.99,223.95,6.74148855]
[1733248505678,2.5,223.99,223.96,2.2318]
[1733248506979,2.5,223.99,223.97,6.74148855]
[1733248507383,46.6893331,224.06,223.97,6.74148855]
[1733248507575,46.6893331,224.06,223.88,4.67987594]
[1733248507576,46.6893331,224.06,224.01,8.97268855]
[1733248507778,2.5,224.05,224.01,8.97268855]
[1733248508979,4.7309,224.05,224.01,8.97268855]
[1733248509982,4.7309,224.05,224.01,2.2312]
[1733248510183,2.5,224.05,223.88,4.67987594]
[1733248510387,9.24148855,224.05,223.97,6.74148855]
[1733248510882,9.24148855,224.05,223.97,8.97318855]
[1733248511282,2.2313,224.01,223.97,8.97318855]
[1733248511485,9.24148855,224.05,223.95,6.74148855]
[1733248511486,6.74148855,224.03,223.95,6.74148855]
[1733248511676,6.74148855,223.99,223.91,6.74148855]
[1733248511879,2.2318,223.96,223.92,2.2322]
[1733248512275,2.5,223.98,223.85,1.4235]
[1733248512276,6.74148855,223.97,223.85,1.4235]
[1733248512482,6.74148855,223.97,223.9,6.74148855]
[1733248512483,1.365,223.97,223.9,6.74148855]
[1733248512984,8.10648855,223.97,223.88,8.97398855]
[1733248513677,2.2322,223.92,223.88,8.97398855]
[1733248513879,2.5,223.91,223.88,6.74148855]
[1733248514081,2.5,223.9,223.88,6.74148855]
[1733248516377,2.5,223.9,223.86,2.2328]
[1733248516578,2.5,223.9,223.88,6.74148855]
[1733248517987,2.5,223.9,223.89,2.2325]
[1733248518789,2.5,223.93,223.88,6.74148855]
[1733248519083,1.302,224.01,223.92,6.74148855]
[1733248519282,2.2315,223.99,223.96,8.97328855]
[1733248519485,2.5,224.0,223.98,6.74148855]
[1733248519882,2.5,224.0,223.85,1.4235]
[1733248520186,2.5,224.0,223.95,6.74148855]
[1733248520583,2.2318,223.97,223.95,6.74148855]
[1733248520987,2.2319,223.96,223.93,6.74148855]
[1733248521790,6.74148855,223.99,223.9,6.74148855]
[1733248521985,2.2322,223.93,223.9,6.74148855]
[1733248522184,2.5,223.92,223.9,6.74148855]
[1733248522389,4.7322,223.92,223.9,6.74148855]
[1733248522587,2.5,223.92,223.77,2.5]
[1733248522889,2.5,223.92,223.86,6.74148855]
[1733248523389,2.2326,223.88,223.86,6.74148855]
[1733248523891,2.5,223.92,223.86,6.74148855]
[1733248524293,2.5,223.92,223.88,6.74148855]
[1733248524592,2.5,223.92,223.9,6.74148855]
[1733248525687,2.5,223.92,223.89,10.53494357]
[1733248526190,2.5,223.92,223.91,2.2323]
[1733248526390,2.683,223.98,223.89,10.53494357]
[1733248526696,2.5,223.97,223.92,10.53494357]
[1733248526889,46.69335477,224.02,223.95,10.53494357]
[1733248526890,2.5,223.98,223.95,10.53494357]
[1733248527291,2.5,223.98,223.97,2.2317]
[1733248527790,2.5,223.98,223.95,10.53494357]
[1733248528185,2.5,223.98,223.96,2.2318]
[1733248528393,2.5,223.98,223.95,10.53494357]
[1733248528984,2.5,223.98,223.95,12.76674357]
[1733248529189,2.5,223.98,223.92,10.53494357]
[1733248529589,4.7316,223.98,223.94,2.232]
[1733248530095,2.5,223.98,223.97,2.2317]
[1733248530989,2.5,223.98,223.96,2.2318]
[1733248531298,2.5,223.98,223.95,10.53494357]
[1733248531493,46.69335477,224.02,223.95,10.53494357]
[1733248531798,46.69335477,224.02,223.97,2.2316]
[1733248531799,2.5,224.01,223.97,2.2316]
[1733248532296,2.2311,224.03,223.98,10.53494357]
[1733248532502,1.297,224.05,223.98,10.53494357]
[1733248532706,1.3804,224.09,223.98,10.53494357]
[1733248532901,2.2308,224.06,224.02,2.2312]
[1733248533102,2.5,224.08,224.02,2.2312]
[1733248533503,4.7306,224.08,224.03,2.2311]
[1733248535009,4.7306,224.08,224.03,2.2312]
[1733248535304,2.2308,224.07,224.03,2.2312]
[1733248535904,2.2308,224.07,224.02,2.2313]
[1733248536806,2.5,224.08,224.01,10.53494357]
[1733248537010,2.2308,224.07,224.01,10.53494357]
[1733248538099,2.2308,224.07,224.02,2.2312]
[1733248538909,2.2308,224.07,224.03,2.2311]
[1733248541905,2.2308,224.07,224.01,10.53494357]
[1733248541906,2.7751,224.14,224.01,10.53494357]
[1733248542105,2.5,224.07,224.01,10.53494357]
[1733248542414,2.5,224.07,224.06,2.2309]
[1733248542711,2.5,224.08,224.06,2.2309]
[1733248542908,2.7751,224.14,224.04,10.53494357]
[1733248543108,1.3682,224.14,224.07,10.53494357]
[1733248543312,1.3526,224.21,224.1,10.53494357]
[1733248543502,2.2298,224.17,224.13,12.76514357]
[1733248543706,2.5,224.16,224.13,12.76514357]
[1733248545009,2.5,224.16,224.11,2.2303]
[1733248545207,2.5,224.16,224.1,10.53494357]
[1733248545715,2.5,224.16,224.13,2.2301]
[1733248546913,2.5,224.16,224.1,10.53494357]
[1733248547116,2.5,224.16,224.12,2.2302]
[1733248547912,2.5,224.16,224.13,10.53494357]
[1733248548616,2.5,224.16,224.02,31.90024287]
[1733248548819,2.5,224.16,224.11,10.53494357]
[1733248549013,2.5,224.16,224.08,10.53494357]
[1733248549517,2.2302,224.12,224.09,2.2305]
[1733248549718,2.5,224.16,224.05,11.88784357]
[1733248549913,2.5,224.16,224.05,10.53494357]
[1733248550219,2.5,224.16,224.02,10.53494357]
[1733248550424,11.83484357,224.15,224.02,10.53494357]
[1733248550816,1.4128,224.14,224.02,10.53494357]
[1733248552417,2.2307,224.08,224.02,10.53494357]
[1733248552613,2.5,224.07,224.02,10.53494357]
[1733248554315,2.5,224.07,223.97,2.7178]
[1733248554316,2.5,224.07,223.99,10.53494357]
[1733248554518,2.2308,224.06,224.02,2.2312]
[1733248554914,2.2308,224.06,223.99,10.53494357]
[1733248555113,2.2308,224.06,224.01,2.2313]
[1733248555524,2.2311,224.04,223.99,10.53494357]
[1733248555728,2.2311,224.04,223.99,12.76634357]
[1733248556522,2.2313,224.01,223.96,12.76674357]
[1733248556715,2.5,224.0,223.96,12.76674357]
[1733248557523,4.7314,224.0,223.96,12.76674357]
[1733248557916,2.5,224.0,223.96,12.76674357]
[1733248558325,2.5,224.0,223.97,2.2317]
[1733248558517,2.5,224.0,223.96,10.53494357]
[1733248558717,2.5,224.06,223.99,10.53494357]
[1733248558918,1.4128,224.14,223.95,31.90945052]
[1733248559217,10.53494357,224.12,224.0,10.53494357]
[1733248559413,2.5,224.13,224.0,10.53494357]
[1733248560324,2.2304,224.11,224.05,2.2309]
[1733248560824,2.2302,224.12,224.05,2.2309]
[1733248561320,3.6429,224.14,224.03,10.53494357]
[1733248561522,2.5,224.13,224.03,10.53494357]
[1733248562119,2.5,224.13,224.09,2.2305]
[1733248562321,2.5,224.13,224.03,10.53494357]
[1733248562322,2.5,224.12,224.06,10.53494357]
[1733248563428,2.5,224.12,224.08,2.2305]
[1733248563624,2.5,224.12,224.06,10.53494357]
[1733248564122,1.4128,224.14,224.06,10.53494357]
[1733248564320,2.5,224.13,224.09,10.53494357]
[1733248564726,2.5,224.13,224.12,2.2302]
[1733248566028,2.5,224.13,224.11,2.2303]
[1733248566231,2.5,224.13,224.06,10.53494357]
[1733248567526,2.5,224.13,224.1,2.2303]
[1733248570432,2.5,224.13,224.12,2.2302]
[1733248572828,2.2298,224.17,224.13,2.2301]
[1733248573027,2.48,224.16,224.13,2.2301]
[1733248573742,2.48,224.16,224.09,10.53494357]
[1733248574436,2.48,224.16,224.13,2.2301]
[1733248574831,2.48,224.16,224.09,10.53494357]
[1733248575636,2.48,224.16,224.06,10.53494357]
[1733248575838,2.2301,224.14,224.03,10.53494357]
[1733248576132,13.01494357,224.16,224.01,1.3241]
[1733248576438,10.53494357,224.13,223.98,1.3225]
[1733248576739,1.4089,224.12,223.97,10.53494357]
[1733248577031,1.4089,224.12,224.0,10.53494357]
[1733248577437,2.48,224.11,224.03,10.53494357]
[1733248578333,2.48,224.11,224.08,2.2306]
[1733248578533,2.48,224.11,224.03,10.53494357]
[1733248579239,2.48,224.11,224.09,2.2305]
[1733248580343,2.2304,224.1,224.05,2.2308]
[1733248581036,2.48,224.11,224.05,2.2308]
[1733248581434,2.48,224.11,224.04,2.231]
[1733248581635,2.2306,224.09,224.04,2.231]
[1733248582036,41.8,224.5,224.08,10.53494357]
[1733248582235,14.59744357,224.35,224.19,10.53494357]
[1733248582540,2.2286,224.29,224.19,10.53494357]
[1733248582839,2.48,224.28,224.19,10.53494357]
[1733248583039,2.2283,224.32,224.24,2.229]
[1733248583235,2.48,224.31,224.22,10.53494357]
[1733248583841,6.2905,224.35,224.25,10.53494357]
[1733248584046,4.0625,224.35,224.25,10.53494357]
[1733248584339,2.48,224.34,224.28,10.53494357]
[1733248584939,2.48,224.34,224.3,2.2284]
[1733248585242,2.48,224.34,224.28,10.53494357]
[1733248585540,2.48,224.34,224.31,2.2283]
[1733248585942,2.48,224.34,224.28,10.53494357]
[1733248586139,1.321,224.41,224.31,10.53494357]
[1733248586336,1.321,224.41,224.34,10.53494357]
[1733248586540,2.48,224.4,224.34,10.53494357]
[1733248587342,2.48,224.4,224.34,12.76294357]
[1733248587536,1.321,224.41,224.34,10.53494357]
[1733248587743,2.48,224.4,224.34,10.53494357]
[1733248588343,2.48,224.4,224.37,10.53494357]
[1733248589039,1.3746,224.49,224.37,10.53494357]
[1733248589241,3.8325,224.48,224.4,10.53494357]
[1733248589447,3.8325,224.48,224.37,10.53494357]
[1733248589647,2.2271,224.44,224.37,10.53494357]
[1733248589944,3.8325,224.48,224.37,10.53494357]
[1733248590147,2.227,224.45,224.37,10.53494357]
[1733248590849,3.8325,224.48,224.37,10.53494357]
[1733248592048,10.53494357,224.46,224.34,10.53494357]
[1733248592342,10.53494357,224.46,224.31,10.53494357]
[1733248592546,10.53494357,224.46,224.32,2.2282]
[1733248592942,10.53494357,224.46,224.31,10.53494357]
[1733248593137,10.53494357,224.46,224.31,12.76324357]
[1733248593341,10.53494357,224.46,224.31,10.53494357]
[1733248593739,2.2276,224.39,224.32,2.2282]
[1733248594048,2.48,224.38,224.31,10.53494357]
[1733248594245,2.48,224.38,224.32,2.2282]
[1733248595447,2.48,224.38,224.31,10.53494357]
[1733248597146,2.48,224.38,224.32,2.2282]
[1733248597744,2.48,224.38,224.33,2.2281]
[1733248600349,2.48,224.38,224.32,2.2282]
[1733248600554,2.48,224.38,224.31,10.53494357]
[1733248601054,4.7077,224.38,224.31,10.53494357]
[1733248601450,2.2277,224.38,224.33,2.2281]
[1733248601650,2.2277,224.38,224.31,10.53494357]
[1733248601651,2.48,224.37,224.31,10.53494357]
[1733248602844,2.48,224.37,224.33,2.2281]
[1733248604858,2.48,224.37,224.31,10.53494357]
[1733248605456,2.48,224.37,224.28,10.53494357]
[1733248606054,2.2283,224.32,224.28,10.53494357]
[1733248606252,2.48,224.32,224.28,10.53494357]
[1733248608049,2.48,224.32,224.29,2.2285]
[1733248608252,2.48,224.32,224.28,10.53494357]
[1733248608647,2.48,224.32,224.25,10.53494357]
[1733248609156,2.48,224.32,224.26,2.2288]
[1733248609357,2.48,224.32,224.25,10.53494357]
[1733248609755,2.2286,224.29,224.25,10.53494357]
[1733248610061,2.48,224.32,224.25,10.53494357]
[1733248610362,2.2285,224.3,224.26,2.2287]
[1733248611448,2.48,224.32,224.22,10.53494357]
[1733248612050,2.2287,224.28,224.24,2.229]
[1733248612253,2.48,224.32,224.22,11.55382612]
[1733248612654,2.2287,224.28,224.23,2.229]
[1733248613359,2.2287,224.28,224.24,2.229]
[1733248614652,2.2289,224.26,224.22,11.55382612]
[1733248614960,2.48,224.25,224.22,11.55382612]
[1733248615358,2.48,224.25,224.22,13.78292612]
[1733248616057,2.48,224.25,224.19,11.55382612]
[1733248616859,2.2292,224.23,224.19,13.78332612]
[1733248617362,2.2292,224.23,224.19,11.55382612]
[1733248617562,2.2292,224.23,224.19,13.78332612]
[1733248618259,2.2292,224.23,224.2,2.2294]
[1733248618562,2.2292,224.23,224.19,11.55382612]
[1733248619263,2.2292,224.23,224.19,13.78322612]
[1733248619863,2.48,224.25,224.19,11.55382612]
[1733248620363,2.2287,224.28,224.19,11.55382612]
[1733248620562,2.48,224.27,224.19,11.55382612]
[1733248620761,2.48,224.26,224.19,11.55382612]
[1733248620957,2.48,224.25,224.19,11.55382612]
[1733248621156,2.48,224.24,224.22,2.2292]
[1733248621361,2.48,224.24,224.19,11.55382612]
[1733248621765,2.48,224.24,224.22,2.2291]
[1733248621970,2.48,224.24,224.19,11.55382612]
[1733248622463,2.48,224.24,224.23,2.2291]
[1733248623660,2.48,224.24,224.22,2.2291]
[1733248623866,2.48,224.24,224.19,11.55382612]
[1733248624163,2.48,224.24,224.23,2.2291]
[1733248626362,4.0458,224.39,224.22,11.55382612]
[1733248626564,2.48,224.38,224.29,11.55382612]
[1733248626765,2.48,224.38,224.26,11.55382612]
[1733248626966,2.48,224.38,224.23,12.93412612]
[1733248627161,2.48,224.38,224.23,11.55382612]
[1733248627357,2.2284,224.3,224.25,2.2288]
[1733248627564,2.48,224.29,224.23,11.55382612]
[1733248627860,2.48,224.4,224.26,11.55382612]
[1733248628060,2.48,224.4,224.31,11.55382612]
[1733248628561,2.2275,224.38,224.31,11.55382612]
[1733248628759,2.48,224.4,224.31,11.55382612]
[1733248628963,4.7074,224.4,224.35,2.2278]
[1733248629266,2.48,224.42,224.37,11.55382612]
[1733248629765,2.48,224.42,224.39,7.3853471]
[1733248630067,2.48,224.42,224.3,2.6845]
[1733248630365,2.2274,224.4,224.34,2.2279]
[1733248630566,2.48,224.42,224.34,2.2279]
[1733248630766,2.2275,224.39,224.33,9.6133471]
[1733248631264,4.4498,224.65,224.37,7.3853471]
[1733248631469,7.3853471,224.52,224.44,7.3853471]
[1733248631670,2.48,224.51,224.41,11.53435512]
[1733248632164,2.2265,224.49,224.43,2.227]
[1733248632561,2.2265,224.49,224.41,11.53435512]
[1733248632864,2.2265,224.49,224.41,2.2272]
[1733248633068,2.48,224.51,224.38,11.53435512]
[1733248633667,2.2267,224.46,224.38,11.53435512]
[1733248633970,2.48,224.45,224.4,2.2273]
[1733248634973,2.48,224.46,224.44,11.53435512]
[1733248635373,2.48,224.5,224.44,11.53435512]
[1733248635575,2.48,224.5,224.46,2.2267]
[1733248635973,1.3171,224.53,224.44,11.53435512]
[1733248636172,2.48,224.52,224.44,11.53435512]
[1733248636868,2.7532,224.54,224.49,2.2264]
[1733248637069,2.48,224.53,224.47,11.53435512]
[1733248637466,2.48,224.53,224.48,2.2265]
[1733248638677,2.48,224.53,224.47,11.53435512]
[1733248638678,2.48,224.53,224.49,2.2264]
[1733248639571,2.48,224.53,224.47,13.76095512]
[1733248639775,2.48,224.53,224.47,11.53435512]
[1733248639977,2.48,224.53,224.44,11.53435512]
[1733248640175,2.2262,224.52,224.47,2.2266]
[1733248640677,2.48,224.53,224.48,2.2264]
[1733248641781,2.48,224.53,224.49,2.2264]
[1733248641985,2.48,224.53,224.47,11.53435512]
[1733248642179,2.48,224.53,224.49,2.2264]
[1733248644181,2.48,224.53,224.44,13.76125512]
[1733248644182,2.2264,224.5,224.44,13.76125512]
[1733248644382,2.48,224.53,224.44,11.53435512]
[1733248645179,2.2262,224.52,224.46,2.2266]
[1733248646085,2.48,224.53,224.49,2.2264]
[1733248646476,2.48,224.53,224.47,11.53435512]
[1733248646677,2.48,224.53,224.5,2.2262]
[1733248648682,1.3937,224.61,224.47,11.53435512]
[1733248648683,2.25148188,224.73,224.51,11.53435512]
[1733248648883,2.25148188,224.73,224.57,2.2256]
[1733248648884,2.2252,224.62,224.57,2.2256]
[1733248649287,2.48,224.64,224.56,11.53435512]
[1733248649482,4.705,224.64,224.56,11.53435512]
[1733248649791,2.48,224.63,224.56,11.53435512]
[1733248650083,2.48,224.63,224.58,2.2255]
[1733248650287,2.48,224.63,224.56,11.53435512]
[1733248651583,2.48,224.63,224.58,2.2255]
[1733248651891,2.48,224.63,224.53,11.53435512]
[1733248652094,2.2255,224.59,224.5,11.53435512]
[1733248652285,3.7964,224.63,224.5,11.53435512]
[1733248652487,3.7964,224.63,224.53,11.53435512]
[1733248653385,3.7964,224.63,224.56,11.53435512]
[1733248653788,2.48,224.63,224.56,11.53435512]
[1733248654487,2.48,224.63,224.58,2.2255]
[1733248654687,2.225,224.64,224.56,11.53435512]
[1733248654888,2.48,224.63,224.56,11.53435512]
[1733248655087,2.48,224.63,224.58,2.2255]
[1733248655490,4.7051,224.63,224.58,2.2255]
[1733248655690,2.48,224.63,224.56,11.53435512]
[1733248655882,2.2253,224.61,224.53,11.53435512]
[1733248656082,2.48,224.63,224.53,11.53435512]
[1733248656292,2.48,224.63,224.5,11.53435512]
[1733248656590,1.3362,224.62,224.5,11.53435512]
[1733248656987,2.2256,224.58,224.52,2.2261]
[1733248657188,2.46,224.57,224.52,2.2261]
[1733248657488,4.6857,224.57,224.52,2.2261]
[1733248657696,2.46,224.57,224.52,2.2261]
[1733248657989,2.46,224.57,224.5,11.53435512]
[1733248658192,2.226,224.54,224.5,11.53435512]
[1733248658588,2.226,224.54,224.49,2.2264]
[1733248658589,2.2262,224.52,224.44,11.53435512]
[1733248658798,2.46,224.51,224.46,2.2267]
[1733248658986,2.46,224.5,224.44,11.53435512]
[1733248659189,2.46,224.49,224.44,11.53435512]
[1733248659487,2.46,224.49,224.48,2.2265]
[1733248659694,2.46,224.49,224.44,11.53435512]
[1733248659995,2.46,224.49,224.45,2.2268]
[1733248660190,2.46,224.49,224.44,11.53435512]
[1733248660386,2.46,224.49,224.47,11.53435512]
[1733248660595,2.46,224.53,224.47,11.53435512]
[1733248660790,2.46,224.53,224.52,11.53435512]
[1733248661892,2.46,224.53,224.52,13.76045512]
[1733248662092,2.46,224.57,224.52,11.53435512]
[1733248662685,4.6857,224.57,224.52,13.76045512]
[1733248662886,4.6857,224.57,224.52,11.53435512]
[1733248663092,2.46,224.57,224.52,11.53435512]
[1733248663689,2.46,224.57,224.53,2.226]
[1733248664391,2.46,224.57,224.52,11.53435512]
[1733248664990,2.46,224.57,224.54,2.2259]
[1733248665186,2.46,224.57,224.52,11.53435512]
[1733248665693,2.46,224.57,224.53,2.226]
[1733248665694,4.6857,224.57,224.53,2.226]
[1733248667692,2.2258,224.56,224.52,13.76045512]
[1733248667897,2.46,224.57,224.52,11.53435512]
[1733248668095,2.46,224.57,224.49,11.53435512]
[1733248669193,2.46,224.57,224.52,11.53435512]
[1733248671199,2.46,224.57,224.54,2.2259]
[1733248671798,2.46,224.57,224.52,11.53435512]
[1733248672002,2.46,224.57,224.49,11.53435512]
[1733248672202,2.46,224.57,224.5,1.30922123]
[1733248672602,2.46,224.57,224.54,2.2259]
[1733248673098,2.46,224.57,224.55,2.2258]
[1733248675205,4.4478,224.76,224.62,2.2251]
[1733248675506,2.2249,224.65,224.56,11.52343988]
[1733248675801,2.46,224.65,224.55,2.2258]
[1733248676004,2.46,224.65,224.53,11.52343988]
[1733248676195,2.2253,224.61,224.53,11.52343988]
[1733248676400,2.2253,224.61,224.55,2.2258]
[1733248676599,2.2253,224.61,224.53,11.52343988]
[1733248677002,2.2253,224.61,224.56,2.2257]
[1733248677805,2.2253,224.61,224.57,2.2256]
[1733248679295,2.46,224.64,224.57,2.2256]
[1733248679904,2.2253,224.61,224.57,2.2256]
[1733248680697,2.46,224.64,224.57,2.2256]
[1733248680900,2.2254,224.6,224.57,2.2256]
[1733248681600,2.2254,224.6,224.56,2.2257]
[1733248682301,2.2254,224.6,224.53,11.52343988]
[1733248682507,2.46,224.64,224.56,11.52343988]
[1733248683007,2.2253,224.61,224.57,2.2256]
[1733248683504,2.2253,224.61,224.59,7.37277435]
[1733248684504,2.2254,224.6,224.59,7.37277435]
[1733248684710,2.46,224.64,224.57,7.37277435]
[1733248684908,2.2252,224.62,224.57,7.37277435]
[1733248685112,2.46,224.64,224.57,7.37277435]
[1733248685310,7.37277435,224.63,224.55,7.37277435]
[1733248685610,2.2256,224.58,224.47,46.16230752]
[1733248685803,2.46,224.57,224.55,7.37277435]
[1733248686004,2.46,224.56,224.53,7.37277435]
[1733248686204,2.46,224.55,224.53,7.37277435]
[1733248686507,2.46,224.54,224.53,7.37277435]
[1733248686711,2.46,224.54,224.53,9.59877435]
[1733248687510,2.46,224.54,224.53,2.226]
[1733248688208,2.46,224.54,224.51,2.2262]
[1733248688513,2.46,224.54,224.5,11.52555452]
[1733248689118,2.46,224.54,224.53,11.52555452]
[1733248689313,2.46,224.54,224.53,2.226]
[1733248689819,2.46,224.54,224.52,13.74928605]
[1733248690925,2.46,224.54,224.52,11.52318605]
[1733248691417,2.46,224.54,224.52,13.74928605]
[1733248692419,2.46,224.54,224.53,2.226]
[1733248694819,2.46,224.54,224.42,1.3481]
[1733248695216,4.686,224.54,224.46,11.52318605]
[1733248695412,2.46,224.54,224.52,11.52318605]
[1733248695913,2.46,224.54,224.53,2.226]
[1733248696723,2.46,224.54,224.49,11.52318605]
[1733248697516,4.686,224.54,224.5,2.2263]
[1733248698011,4.686,224.54,224.49,11.52318605]
[1733248698212,4.686,224.54,224.51,2.2262]
[1733248698521,2.46,224.54,224.49,11.52318605]
[1733248698720,2.46,224.54,224.53,2.226]
[1733248699219,2.46,224.6,224.51,11.52318605]
[1733248699430,2.46,224.6,224.55,11.52318605]
[1733248699621,2.2256,224.58,224.52,11.52318605]
[1733248699821,2.2256,224.58,224.54,2.2259]
[1733248700223,2.2255,224.59,224.55,2.2258]
[1733248701012,4.6854,224.6,224.56,2.2257]
[1733248701224,4.6854,224.6,224.52,11.52318605]
[1733248701225,2.46,224.6,224.52,11.52318605]
[1733248701517,2.46,224.59,224.52,11.52318605]
[1733248702521,2.46,224.59,224.54,2.2259]
[1733248702726,2.46,224.59,224.52,11.52318605]
[1733248703120,2.46,224.59,224.55,11.52318605]
[1733248703521,1.4217,224.62,224.55,11.52318605]
[1733248703716,1.2864,224.68,224.55,11.52318605]
[1733248703918,2.46,224.67,224.58,11.52318605]
[1733248704820,1.2864,224.68,224.58,11.52318605]
[1733248705016,1.2864,224.68,224.61,2.2253]
[1733248705017,2.2249,224.65,224.61,2.2253]
[1733248705422,2.46,224.66,224.58,11.52318605]
[1733248706721,2.225,224.64,224.6,2.2253]
[1733248707228,2.46,224.66,224.58,11.52318605]
[1733248707628,2.46,224.66,224.61,7.371514]
[1733248707629,2.2249,224.65,224.61,7.371514]
[1733248708331,2.46,224.64,224.61,7.371514]
[1733248708927,2.46,224.64,224.52,1.35]
[1733248709132,2.46,224.64,224.57,7.371514]
[1733248709336,2.2251,224.63,224.58,2.2255]
[1733248709732,2.2251,224.63,224.59,7.371514]
[1733248709929,4.685,224.64,224.59,9.596914]
[1733248710236,2.46,224.64,224.61,7.371514]
[1733248710530,309.53321877,224.77,224.48,46.0024241]
[1733248710531,309.53321877,224.8,224.63,7.371514]
[1733248710738,1.3552,224.79,224.72,7.371514]
[1733248710933,2.2238,224.77,224.74,7.371514]
[1733248711330,3.8152,224.79,224.72,7.371514]
[1733248711537,2.2238,224.76,224.72,7.371514]
[1733248711831,370.48115284,224.83,224.61,1.3388]
[1733248711832,2.46,224.89,224.75,7.371514]
[1733248712134,2.223,224.85,224.68,2.46]
[1733248712335,7.371514,224.85,224.78,7.371514]
[1733248712536,7.371514,224.85,224.76,7.371514]